Workbook

Sheet Summary
A1: Investment Examples
A3: On each example worksheet, read the comments at the bottom of the sheet, then
A4: click Tools Solver... to examine the decision variables, constraints, and objective.
A5: To find the optimal solution, click the Solve button.
A7: The models in this workbook deal with decisions to invest in stocks and bonds. To help you
A8: understand the models in this workbook, we briefly explain the ideas behind the stock and bond
A9: models in the Theory worksheet.
A11: The Markowitz model uses the Solver to determine the percent of our available funds to invest
A12: in each of five stocks, so as to incur the least risk for a target rate of return. The resulting
A13: portfolio of stocks is called an efficient portfolio. In this model, we assume that the variances
A14: and covariances of stocks are known. In the Full Markowitz model, we calculate the variances
A15: and covariances of stocks from a history of stock prices.
A17: The Efficient Frontier worksheet contains a Markowitz model and an embedded chart. A
A18: short VBA program, also included in the workbook, uses the Solver to optimize the
A19: Markowitz model for several different target rates of return. The VBA code is run and the
A20: resulting portfolio returns and variances are plotted on the chart when you press the button on
A21: the worksheet.
A23: The Sharpe model computes an efficient portfolio using alphas and betas which relate the
A24: return on each stock to the return on the market and the risk-free rate. The alphas, betas and
A25: residual variances are computed via linear regression from a history of stock prices.
A27: The four Bond worksheets illustrate how a portfolio of bonds may be 'immunized' against
A28: changes in interest rates. The model Bond1 assumes that bond durations are known. In model
A29: Bond2, the durations are calculated using Excel’s DURATION function.
A31: Models Bond3 and Bond4 illustrate 'exact matching' in fixed-income portfolios. Here we
A32: assume that the investor has a series of liabilities (for example, pension payments) to be met in
A33: future periods, and the principal and interest on the bonds must cover the liabilities in each
A34: period.

Sheet Theory
A1: Stock Examples - Background
A3: Every stock in the market has a certain return. We assume that this return has a normal
A4: distribution. This means that we can completely describe this distribution by two terms. The
A5: first term is the mean (expected return) and the second is the variance of returns. We can also
A6: compute a covariance of returns between any pair of stocks -- those that move together will
A7: have positive covariances, those that move in opposite directions will have negative
A8: covariances. If we know the expected return and variance of several stocks, we can put
A9: together a portfolio of these stocks that has a desired variance (risk) with a certain expected
A10: return. The Solver is used to pick the portfolio with the smallest variance for a certain
A11: expected return. (Or it could be used to find the highest expected return for a certain
A12: variance.)
A14: How do we calculate the expected return and variance of a portfolio? Harry Markowitz
A15: developed a method that computes the portfolio variance as the sum of the individual stock
A16: variances and covariances between pairs of stocks in the portfolio, weighted by the relative
A17: proportion of each stock in the portfolio. From a mathematical point of view this is the right
A18: thing to do. However, since all covariance terms between all stocks must be known, this
A19: requires many calculations. A portfolio with 100 different stocks would require more than
A20: 5000 covariance terms, for instance.
A22: William Sharpe devised another method of determining the expected return and variance of
A23: a portfolio. This method assumes that the return of each stock is composed of two parts:
A24: One part (denoted by beta) is dependent on the overall market's performance, and the other
A25: (denoted by alpha) is independent of the market. So we can write the expected return as
C26: Return = Beta * Market + Alpha + Residual
A27: In this equation, alpha and beta are constants that are different for each stock; the residual
A28: term is a random variable with an expected value of zero. When this formula is used, a
A29: portfolio with 100 stocks would only require 302 terms to fully describe its distribution (100
A30: alphas, 100 betas, 100 residual variances, plus the market return and the market variance).
A31: Compared to the more than 5000 terms of the Markowitz method, this is a big improvement.
A32: However, although the Sharpe method requires less work, it is not as accurate as the
A33: Markowitz method.
A35: Bond Examples - Background
A37: Bonds are generally considered less risky than stocks. If a bond is of high credit quality, its
A38: price changes will depend almost entirely on interest rate changes. If interest rates go up, the
A39: price of a bond goes down, while if interest rates go down, the price of a bond goes up.
A40: However, most bonds pay interest in an annual (or semi-annual) coupon, and the interest can
A41: be reinvested. If interest rates go up, the price of the bond does go down, but the coupon could
A42: be reinvested at the higher interest rate. These two effects cancel each other out at the end of
A43: the duration of a bond. The duration of a bond is the average time in which a bond is repaid.
A44: For example, if a bond has a maturity of 3 years with face value $1,000 and an annual coupon
A45: payment of $100 and a yield of 10%, the duration is 2.735 years. Thus, one way of protecting
A46: against fluctuation of interest rates is to have a portfolio whose duration is equal to one’s own
A47: investment time horizon. A portfolio of bonds has a duration that is the weighted average of
A48: the duration of the individual bonds.
A50: In model Bond1 we assume we know the duration of the bonds available and want to maximize
A51: the yield of the portfolio while keeping the duration equal to a given investment time horizon.
A52: This technique is known as bond portfolio 'immunization.' Bond2 is another immunization
A53: model, but this time the duration for each bond is calculated from the face value, maturity,
A54: annual coupon and yield to maturity of each bond.
A56: In model Bond3 we look at another common way to protect against interest rate fluctuations.
A57: When we acquire a portfolio of bonds, we can exactly calculate the cash flow that arrives from
A58: this portfolio. This consists of the coupons plus the face values of the bonds that mature.
A59: This also works the other way around. If we know we need to have certain amounts of cash
A60: available at certain periods, we can put together a portfolio that does exactly this. The Solver
A61: chooses that portfolio that covers the required amounts in each year and costs the least.
A62: Bond4 is another example of this technique called 'Exact Matching.' This time we allow
A63: excess funds in a certain period to be reinvested to meet requirements in a future period.

Sheet Markowitz
A1: Portfolio Optimization - Markowitz Method
A2: This Solver model uses the QUADPRODUCT function at cell I14 to compute the portfolio variance.
A3: It can be solved for the minimum variance using either the GRG nonlinear solver or the Quadratic Solver.
B5: Stock 1 | C5: Stock 2 | D5: Stock 3 | E5: Stock 4 | F5: Stock 5 | H5: Total
A6: Portfolio % | B6: 0.2 | C6: 0.2 | D6: 0.2 | E6: 0.2 | F6: 0.2 | H6: =SUM(B6:F6) -> 1
A7: Expected Return | B7: 0.07 | C7: 0.08 | D7: 0.095 | E7: 0.065 | F7: 0.14
A8: Linear QP Terms | B8: 0 | C8: 0 | D8: 0 | E8: 0 | F8: 0
A10: Variance/Covariance Matrix
B11: Stock 1 | C11: Stock 2 | D11: Stock 3 | E11: Stock 4 | F11: Stock 5
A12: Stock 1 | B12: 0.025 | C12: 0.001 | D12: 0.01 | E12: -0.005 | F12: 0.016
A13: Stock 2 | B13: =C12 -> 0.001 | C13: 0.011 | D13: -0.001 | E13: 0.012 | F13: -0.0085
A14: Stock 3 | B14: =D12 -> 0.01 | C14: =D13 -> -0.001 | D14: 0.012 | E14: 0.0065 | F14: 0.0075 | H14: Variance | I14: =_xll.QUADPRODUCT(Allocations,B8:F8,Stock_Covariances) -> 0.00676
A15: Stock 4 | B15: =E12 -> -0.005 | C15: =E13 -> 0.012 | D15: =E14 -> 0.0065 | E15: 0.004 | F15: 0.01 | H15: Std. Dev. | I15: =SQRT(I14) -> 0.08221921916
A16: Stock 5 | B16: =F12 -> 0.016 | C16: =F13 -> -0.0085 | D16: =F14 -> 0.0075 | E16: =F15 -> 0.01 | F16: 0.02 | H16: Return | I16: =SUMPRODUCT(Allocations,Stock_Returns) -> 0.09
A19: Problem
A20: An investor wants to put together a portfolio consisting of up to 5 stocks. Using the Markowitz method, what is the
A21: best combination of stocks to minimize risk for a given return? The variances are known for each stock, as are the
A22: covariances between all stocks. The returns for all stocks are also known.
A24: Solution
A25: 1) The variables are the percentage allocations of our funds to invest in each stock. In this worksheet, the variables
A26: are given the name Allocations. The sum of the allocations (which must be 100%) is computed in the cell named
A27: Total_Portfolio.
A28: 2) The constraints are very simple. First there are the logical constraints:
B29: Allocations >= 0 via the Assume Non-Negative option
B30: Total_Portfolio = 1
A31: Then there is a constraint that the portfolio return should be at least a certain target value (9% in this example). This
A32: return is calculated in the cell named Portfolio_return:
B33: Portfolio_Return >= 0.09
A34: 3) The objective is to minimize portfolio variance, which is calculated according to the Markowitz method in the cell
A35: named Portfolio_Variance.
A37: Remarks
A38: In this worksheet, we use the QUADPRODUCT function to compute the portfolio variance. If you see #NAME? on
A39: this worksheet, you need to open the add-in (DOTPRD32.XLL or DOTPROD.XLL) that provides QUADPRODUCT.
A40: In the Full Markowitz worksheet, we calculate the portfolio variance 'manually' without using QUADPRODUCT.
A41: The Markowitz method can only be used if all the variances of individual stocks, and the covariances between each
A42: pair of stocks are known. In this model we assumed that all the terms are given. In the Full Markowitz worksheet we
A43: actually calculate the variances and covariances from a history of stock prices.

Sheet Full Markowitz
A1: Portfolio Optimization - Markowitz Method
A2: An investor wants to put together a portfolio, drawing from a set of 5 candidate stocks.
A3: What is the best combination of stocks to achieve a given rate of return with the least risk?
B5: Stock 1 | C5: Stock 2 | D5: Stock 3 | E5: Stock 4 | F5: Stock 5 | H5: Total
A6: Portfolio % | B6: 0.2 | C6: 0.2 | D6: 0.2 | E6: 0.2 | F6: 0.2 | H6: =SUM(B6:F6) -> 1
A7: Expected Return | B7: =AVERAGE(B23:B32) -> 0.087 | C7: =AVERAGE(C23:C32) -> 0.071 | D7: =AVERAGE(D23:D32) -> 0.094 | E7: =AVERAGE(E23:E32) -> 0.107 | F7: =AVERAGE(F23:F32) -> 0.069
A9: Variance/Covariance Matrix
B10: Stock 1 | C10: Stock 2 | D10: Stock 3 | E10: Stock 4 | F10: Stock 5
A11: Stock 1 | B11: =VARP(B23:B32) -> 0.000321 | C11: =COVAR(B23:B32,C23:C32) -> 0.001243 | D11: =COVAR(B23:B32,D23:D32) -> 0.000272 | E11: =COVAR(B23:B32,E23:E32) -> 0.000571 | F11: =COVAR(B23:B32,F23:F32) -> 0.000117
A12: Stock 2 | B12: =C11 -> 0.001243 | C12: =VARP(C23:C32) -> 0.012329 | D12: =COVAR(C23:C32,D23:D32) -> 0.001996 | E12: =COVAR(C23:C32,E23:E32) -> 0.001633 | F12: =COVAR(C23:C32,F23:F32) -> -0.000539
A13: Stock 3 | B13: =D11 -> 0.000272 | C13: =D12 -> 0.001996 | D13: =VARP(D23:D32) -> 0.000424 | E13: =COVAR(D23:D32,E23:E32) -> 0.000382 | F13: =COVAR(D23:D32,F23:F32) -> -6.6e-05
A14: Stock 4 | B14: =E11 -> 0.000571 | C14: =E12 -> 0.001633 | D14: =E13 -> 0.000382 | E14: =VARP(E23:E32) -> 0.005141 | F14: =COVAR(E23:E32,F23:F32) -> 0.000237
A15: Stock 5 | B15: =F11 -> 0.000117 | C15: =F12 -> -0.000539 | D15: =F13 -> -6.6e-05 | E15: =F14 -> 0.000237 | F15: =VARP(F23:F32) -> 0.000509
A17: Variance Terms | B17: =B6*SUMPRODUCT($B$6:$F$6,B11:F11) -> 0.00010096 | C17: =C6*SUMPRODUCT($B$6:$F$6,B12:F12) -> 0.00066648 | D17: =D6*SUMPRODUCT($B$6:$F$6,B13:F13) -> 0.00012032 | E17: =E6*SUMPRODUCT($B$6:$F$6,B14:F14) -> 0.00031856 | F17: =F6*SUMPRODUCT($B$6:$F$6,B15:F15) -> 1.032e-05 | H17: Variance | I17: =SUM(B17:F17) -> 0.00121664
H18: Std. Dev. | I18: =SQRT(I17) -> 0.03488036697
A19: Return Terms | B19: =B6*B7 -> 0.0174 | C19: =C6*C7 -> 0.0142 | D19: =D6*D7 -> 0.0188 | E19: =E6*E7 -> 0.0214 | F19: =F6*F7 -> 0.0138 | H19: Return | I19: =SUM(B19:F19) -> 0.0856
A21: Historical data (Returns) on stocks
B22: Stock 1 | C22: Stock 2 | D22: Stock 3 | E22: Stock 4 | F22: Stock 5
A23: Period 1 | B23: 0.1 | C23: 0.15 | D23: 0.12 | E23: 0.18 | F23: 0.05
A24: Period 2 | B24: 0.12 | C24: 0.17 | D24: 0.13 | E24: 0.16 | F24: 0.08
A25: Period 3 | B25: 0.08 | C25: 0.04 | D25: 0.09 | E25: 0.03 | F25: 0.1
A26: Period 4 | B26: 0.07 | C26: -0.08 | D26: 0.07 | E26: 0.04 | F26: 0.09
A27: Period 5 | B27: 0.09 | C27: 0.15 | D27: 0.09 | E27: 0.08 | F27: 0.05
A28: Period 6 | B28: 0.07 | C28: 0.22 | D28: 0.11 | E28: 0.1 | F28: 0.04
A29: Period 7 | B29: 0.08 | C29: 0.03 | D29: 0.09 | E29: -0.03 | F29: 0.04
A30: Period 8 | B30: 0.06 | C30: -0.14 | D30: 0.06 | E30: 0.15 | F30: 0.06
A31: Period 9 | B31: 0.09 | C31: 0.02 | D31: 0.08 | E31: 0.2 | F31: 0.08
A32: Period 10 | B32: 0.11 | C32: 0.15 | D32: 0.1 | E32: 0.16 | F32: 0.1
A35: Problem
A36: An investor wants to put together a portfolio consisting of up to 5 stocks. Using the Markowitz method, what is the
A37: best combination of stocks to minimize risk for a given return? In this model, we calculate stock returns, the variance
A38: of each stock, and the covariances between stocks, using the Excel functions AVERAGE, VARP and COVAR.
A40: Solution
A41: 1) The variables are the percentage allocations of our funds to invest in each stock. In this worksheet, the variables
A42: are cells B6 to F6 (they are not given a name). The sum of the percentage allocations (which must be 100%) is
A43: computed in cell H6.
A44: 2) The constraints are very simple. First there are the logical constraints:
B45: B6:F6 >= 0 via the Assume Non-Negative option
B46: H6 = 1
A47: Then there is a constraint that the portfolio return should be at least a certain target value (9% in this example). This
A48: return is calculated in cell I19, as the sum of the weighted stock returns:
B49: I19 >= 0.09
A50: 3) The objective is to minimize portfolio variance, which is calculated from the weighted individual stock variances
A51: and covariances according to the Markowitz method in cell I17.
A53: Remarks
A54: The stock variances and covariances are calculated in cells B11:F15 from the historical price data in cells B23:F32.
A55: Using historical price data to compute estimates of stock returns, variances and covariances is only a first step in
A56: investment planning. Stock returns, as well as variances and covariances, vary over time. Investors often rely on
A57: security analysts to provide better estimates of these quantities for the future.

Sheet Efficient Frontier
A1: Portfolio Optimization - Markowitz Method
A2: An investor wants to put together a portfolio, drawing from a set of 5 candidate stocks.
A3: 'What is the best combination of stocks to achieve a given rate of return with the least risk?
B5: Stock 1 | C5: Stock 2 | D5: Stock 3 | E5: Stock 4 | F5: Stock 5 | H5: Total
A6: Portfolio % | B6: 0 | C6: 0.03571428571 | D6: 0 | E6: 0 | F6: 0.9642857143 | H6: =SUM(B6:F6) -> 1
A7: Expected Return | B7: 0.07 | C7: 0.08 | D7: 0.095 | E7: 0.065 | F7: 0.15
A9: Variance/Covariance Matrix
B10: Stock 1 | C10: Stock 2 | D10: Stock 3 | E10: Stock 4 | F10: Stock 5
A11: Stock 1 | B11: 0.025 | C11: 0.001 | D11: 0.01 | E11: -0.005 | F11: 0.016
A12: Stock 2 | B12: =C11 -> 0.001 | C12: 0.011 | D12: -0.001 | E12: 0.012 | F12: -0.0085
A13: Stock 3 | B13: =D11 -> 0.01 | C13: =D12 -> -0.001 | D13: 0.012 | E13: 0.0065 | F13: 0.0075
A14: Stock 4 | B14: =E11 -> -0.005 | C14: =E12 -> 0.012 | D14: =E13 -> 0.0065 | E14: 0.004 | F14: 0.01
A15: Stock 5 | B15: =F11 -> 0.016 | C15: =F12 -> -0.0085 | D15: =F13 -> 0.0075 | E15: =F14 -> 0.01 | F15: 0.02
H16: Variance | I16: =SUM(B17:F17) -> 0.0180255102
A17: Variance Terms | B17: =B6*SUMPRODUCT($B$6:$F$6,B11:F11) -> 0 | C17: =C6*SUMPRODUCT($B$6:$F$6,B12:F12) -> -0.0002786989796 | D17: =D6*SUMPRODUCT($B$6:$F$6,B13:F13) -> 0 | E17: =E6*SUMPRODUCT($B$6:$F$6,B14:F14) -> 0 | F17: =F6*SUMPRODUCT($B$6:$F$6,B15:F15) -> 0.01830420918 | H17: Std. Dev. | I17: =SQRT(I16) -> 0.1342591159
H18: Des. Ret | I18: 0.1475
A19: Return Terms | B19: =B6*B7 -> 0 | C19: =C6*C7 -> 0.002857142857 | D19: =D6*D7 -> 0 | E19: =E6*E7 -> 0 | F19: =F6*F7 -> 0.1446428571 | H19: Return | I19: =SUM(B19:F19) -> 0.1475
A22: This worksheet includes a Markowitz portfolio model that can be optimized by the Solver to find the minimum variance
A23: portfolio for a given target rate of return. We then use VBA (Visual Basic Application Edition) code to set the target
A24: rate of return to different values (from 10% to almost 15%) and run the Solver to optimize the model for each target return.
A25: The VBA code stores the target returns and resulting portfolio variances in cells J21 through K40, which are linked to
A26: the X-Y plot shown to the right. When you press the button labeled 'Create Frontier', the VBA code is run and the
A27: resulting efficient frontier is drawn on the embedded chart.
A28: To see the VBA code controlling the Solver, select Tools Macro... Visual Basic Editor, or press Alt+F11. In the VBA
A29: window, in the left-hand Project list window double-click on Modules, then double-click on Module1. To successully
A30: run the code and create the chart, you may need to choose Tools References... in the VBA Editor and click to set a
A31: check mark next to 'Solver'.

Sheet Sharpe
A1: Portfolio Optimization - Single-Index Method
A2: An investor wants to put together a portfolio, drawing from a set of 5 candidate stocks.
A3: What is the best combination of stocks to get the maximum return with a given variance (risk) ?
B5: Stock 1 | C5: Stock 2 | D5: Stock 3 | E5: Stock 4 | F5: Stock 5 | H5: Total
A6: Portfolio % | B6: 0.2 | C6: 0.2 | D6: 0.2 | E6: 0.2 | F6: 0.2 | H6: =SUM(B6:F6) -> 1
A7: Beta-Coefficient | B7: =INDEX(LINEST(B18:B27,$H$18:$H$27),1) -> 0.5773809524 | C7: =INDEX(LINEST(C18:C27,$H$18:$H$27),1) -> 1.672619048 | D7: =INDEX(LINEST(D18:D27,$H$18:$H$27),1) -> 0.6488095238 | E7: =INDEX(LINEST(E18:E27,$H$18:$H$27),1) -> 0.9345238095 | F7: =INDEX(LINEST(F18:F27,$H$18:$H$27),1) -> 0.7678571429
A8: Alpha-Coefficient | B8: =INDEX(LINEST(B18:B27,$H$18:$H$27),2) -> 0.04773809524 | C8: =INDEX(LINEST(C18:C27,$H$18:$H$27),2) -> -0.04273809524 | D8: =INDEX(LINEST(D18:D27,$H$18:$H$27),2) -> 0.04988095238 | E8: =INDEX(LINEST(E18:E27,$H$18:$H$27),2) -> 0.04345238095 | F8: =INDEX(LINEST(F18:F27,$H$18:$H$27),2) -> 0.01678571429
A9: Residual Variance | B9: =(INDEX(LINEST(B18:B27,$H$18:$H$27,1,1),3,2))^2 -> 0.000261235119 | C9: =(INDEX(LINEST(C18:C27,$H$18:$H$27,1,1),3,2))^2 -> 0.01423623512 | D9: =(INDEX(LINEST(D18:D27,$H$18:$H$27,1,1),3,2))^2 -> 0.0003531994048 | E9: =(INDEX(LINEST(E18:E27,$H$18:$H$27,1,1),3,2))^2 -> 0.006059449405 | F9: =(INDEX(LINEST(F18:F27,$H$18:$H$27,1,1),3,2))^2 -> 0.0003886160714
A10: Weighted Variance | B10: =B6^2*B9 -> 1.044940476e-05 | C10: =C6^2*C9 -> 0.0005694494048 | D10: =D6^2*D9 -> 1.412797619e-05 | E10: =E6^2*E9 -> 0.0002423779762 | F10: =F6^2*F9 -> 1.554464286e-05
E12: Portfolio Variance | H12: =SUMPRODUCT(B7:F7,B6:F6)^2*VAR(H18:H27)+SUM(B10:F10) -> 0.001168102315
E14: Portfolio Return | H14: =SUMPRODUCT(B8:F8,B6:F6)+SUMPRODUCT(B7:F7,B6:F6)*AVERAGE(H18:H27) -> 0.0856
A16: Historical data (Returns) on stocks
B17: Stock 1 | C17: Stock 2 | D17: Stock 3 | E17: Stock 4 | F17: Stock 5 | H17: Market
A18: Period 1 | B18: 0.1 | C18: 0.15 | D18: 0.12 | E18: 0.18 | F18: 0.05 | H18: 0.08
A19: Period 2 | B19: 0.12 | C19: 0.17 | D19: 0.13 | E19: 0.16 | F19: 0.08 | H19: 0.1
A20: Period 3 | B20: 0.08 | C20: 0.04 | D20: 0.09 | E20: 0.03 | F20: 0.1 | H20: 0.09
A21: Period 4 | B21: 0.07 | C21: -0.08 | D21: 0.07 | E21: 0.04 | F21: 0.09 | H21: 0.07
A22: Period 5 | B22: 0.09 | C22: 0.15 | D22: 0.09 | E22: 0.08 | F22: 0.05 | H22: 0.04
A23: Period 6 | B23: 0.07 | C23: 0.22 | D23: 0.11 | E23: 0.1 | F23: 0.04 | H23: 0.06
A24: Period 7 | B24: 0.08 | C24: 0.03 | D24: 0.09 | E24: -0.03 | F24: 0.04 | H24: 0.05
A25: Period 8 | B25: 0.06 | C25: -0.14 | D25: 0.06 | E25: 0.15 | F25: 0.06 | H25: 0.05
A26: Period 9 | B26: 0.09 | C26: 0.02 | D26: 0.08 | E26: 0.2 | F26: 0.08 | H26: 0.06
A27: Period 10 | B27: 0.11 | C27: 0.15 | D27: 0.1 | E27: 0.16 | F27: 0.1 | H27: 0.08
A30: Problem
A31: An investor wants to put together a portfolio consisting of up to 5 stocks. Using the Sharpe Single-Index method,
A32: what is the best combination of stocks to maximize return for a given level of risk (variance)?
A34: Solution
A35: 1) The variables are the percentage or fractional allocations of our funds to invest in each stock. In this worksheet,
A36: the variables are given the name Portfolio_fractions. The sum of the allocations (which must be 100%) is computed
A37: in the cell named Portfolio_Total.
A38: 2) The constraints are very simple. First there are the logical constraints:
B39: Portfolio_Fractions >= 0 via the Assume Non-Negative option
B40: Portfolio_Total = 1
A41: Then there is a constraint that the portfolio variance should be no more than 0.0003 (in this example). The portfolio
A42: variance is calculated in the cell named Variance:
B43: Variance <= 0.0003
A44: 3) The objective is to maximize portfolio return which is calculated according to the Sharpe method in the cell
A45: named Return.
A47: Remarks
A48: This model uses historical data on the stocks and market to calculate the returns and variance of the stocks and
A49: the portfolio. It also uses Excel's regression tools to estimate the alphas and betas, as well as the residual error,
A50: necessary to use the Sharpe Single Index method.
A51: A different approach to this problem would be to minimize risk for a certain return. It is easy to adjust the Solver to
A52: do this. Simply change the set cell to be the variance and adjust the constraint to hold the return at a given level.

Sheet Bond1
A1: Bond Immunization Model
A2: An investor wants to put together a portfolio, drawing from a set of 5 candidate bonds.
A3: What is the best combination of bonds to get the optimum yield with a given investment time horizon ?
B5: Bond 1 | C5: Bond 2 | D5: Bond 3 | E5: Bond 4 | F5: Bond 5 | G5: Bond 6 | I5: Total
A6: Portfolio % | B6: 0.2 | C6: 0.2 | D6: 0.2 | E6: 0.2 | F6: 0.1 | G6: 0.1 | I6: =SUM(B6:G6) -> 1
A7: Duration (Years) | B7: 2.8 | C7: 3.1 | D7: 3.7 | E7: 3.5 | F7: 3.8 | G7: 4
A8: Yield to Maturity | B8: 0.08 | C8: 0.06 | D8: 0.1 | E8: 0.09 | F8: 0.08 | G8: 0.05
F10: Investment Time Horizon | G10: 3.8
F11: Portfolio Duration | G11: =SUMPRODUCT(B6:G6,B7:G7) -> 3.4
F12: Portfolio Yield | G12: =SUMPRODUCT(B6:G6,B8:G8) -> 0.079
A15: Problem
A16: An investor wants to put together a portfolio consisting of up to 6 different bonds. To minimize risk of
A17: loss of principal value due to interest rate fluctuations and to assure enough cash-flow at a certain point
A18: in the future, he wants to make sure that the average duration of the bonds equals his investment time
A19: horizon. How should the investor choose his portfolio to optimize the combined yield of the bonds,
A20: while making sure that the duration of the portfolio equals the investment time horizon? The duration
A21: and the yield to maturity are known for each bond.
A23: Solution
A24: 1) The variables are the percentages or fractions of our available funds to invest in each bond. In
A25: worksheet BOND1 these are given the name Portfolio_fractions.
A26: 2) The constraints are very simple. First we have the logical constraints:
B27: Portfolio_fractions >= 0 via the Assume Non-Negative option
B28: Portfolio_total = 1
A29: Then there is the constraint to make sure that the portfolio duration equals the investment time horizon:
B30: Portfolio_duration = Time_horizon
A31: 3) The objective is to maximize the portfolio yield. This is given the name Portfolio_yield
A33: Remarks
A34: In this model we assume that the duration of the bond is known. In worksheet BOND2 we will see how
A35: to use EXCEL's build-in functions to calculate the duration of each bond.

Sheet Bond2
A1: Bond Immunization Model
A2: An investor wants to put together a portfolio, consisting out of a maximum of 6 bonds.
A3: What is the best combination of bonds to get the optimum yield with a given investment time horizon ?
A4: The period from settlement to maturity is 4 years for each bond.
B6: Bond 1 | C6: Bond 2 | D6: Bond 3 | E6: Bond 4 | F6: Bond 5 | G6: Bond 6 | I6: Total
A7: Portfolio % | B7: 0.2 | C7: 0.2 | D7: 0.2 | E7: 0.2 | F7: 0.2 | G7: 0.2 | I7: =SUM(B7:G7) -> 1.2
A8: Yield to Maturity | B8: 0.08 | C8: 0.06 | D8: 0.09 | E8: 0.1 | F8: 0.07 | G8: 0.09
A9: Coupon Payment | B9: 150 | C9: 100 | D9: 120 | E9: 175 | F9: 0 | G9: 125
A10: Face Value | B10: 1000 | C10: 1000 | D10: 1000 | E10: 1000 | F10: 1000 | G10: 1000
A12: Duration (Years) | B12: =DURATION(DATE(93,1,1),DATE(97,1,1),B9/B10,B8,1,1) -> 3.356298356 | C12: 3.521361266 | D12: 3.430418126 | E12: 3.274476803 | F12: 4 | G12: 3.415317619
F14: Investment Time Horizon | G14: 3.5
F15: Portfolio Duration | G15: =SUMPRODUCT(B7:G7,B12:G12) -> 4.199574434
F16: Portfolio Yield | G16: =SUMPRODUCT(B7:G7,B8:G8) -> 0.098
A19: Problem
A20: An investor wants to put together a portfolio consisting of up to 6 different bonds. To minimize risk of
A21: loss of principal value due to interest rate fluctuations and to assure enough cash-flow at a certain point
A22: in the future, he wants to make sure that the average duration of the bonds equals his investment time
A23: horizon. How should the investor choose his portfolio to optimize the combined yield of the bonds,
A24: while making sure that the duration of the portfolio equals the investment time horizon? All bonds
A25: mature in 4 years and have one annual interest payment. The annual payments, the yield and the
A26: face values of the bonds are all known
A28: Solution
A29: 1) The variables are the percentages or fractions of our available funds to invest in each bond. In
A30: worksheet BOND1 these are given the name Portfolio_fractions.
A31: 2) The constraints are very simple. First we have the logical constraints:
B32: Portfolio_fractions >= 0 via the Assume Non-Negative option
B33: Portfolio_total = 1
A34: Then there is the constraint to make sure that the portfolio duration equals the investment time horizon:
B35: Portfolio_duration = Time_horizon
A36: 3) The objective is to maximize the portfolio yield. This is given the name Portfolio_yield
A38: Remarks
A39: The solution is the same as in worksheet BOND1. The difference is that instead of the duration of
A40: each bond being given, it is now calculated from the yield, annual coupon and face value.
A41: The Excel function DURATION is only available if you have installed the Analysis ToolPak add-in. If
A42: you see #NAME? on the worksheet, choose Tools Add-Ins..., click to put a check mark next to
A43: Analysis ToolPak, then click OK. If Analysis ToolPak is missing from the list of available add-ins, you
A44: may need to install it from the Excel or Office CD.

Sheet Bond3
A1: Bond Model - Exact Matching
A2: What is the minimum cost portfolio, consisting of up to 6 bonds, that provides enough
A3: cash flow to cover liabilities in each period?
A4: Interest Rate | B4: 0.07
A6: Characteristics of bonds
B7: Bond 1 | C7: Bond 2 | D7: Bond 3 | E7: Bond 4 | F7: Bond 5
A8: Face Value | B8: 1000 | C8: 1000 | D8: 1000 | E8: 1000 | F8: 1000
A9: Coupon Payment | B9: 100 | C9: 125 | D9: 150 | E9: 200 | F9: 75
A10: Years to Maturity | B10: 3 | C10: 5 | D10: 6 | E10: 4 | F10: 6
A11: Price | B11: =PRICE(DATE(93,1,1),DATE(93+B10,1,1),B9/B8,0.07,100,1,0)*B8/100 -> 1078.729481 | C11: =PRICE(DATE(93,1,1),DATE(93+C10,1,1),C9/C8,0.07,100,1,0)*C8/100 -> 1225.510859 | D11: =PRICE(DATE(93,1,1),DATE(93+D10,1,1),D9/D8,0.07,100,1,0)*D8/100 -> 1381.323173 | E11: =PRICE(DATE(93,1,1),DATE(93+E10,1,1),E9/E8,0.07,100,1,0)*E8/100 -> 1440.337463 | F11: =PRICE(DATE(93,1,1),DATE(93+F10,1,1),F9/F8,0.07,100,1,0)*F8/100 -> 1023.832698
B13: Bond 1 | C13: Bond 2 | D13: Bond 3 | E13: Bond 4 | F13: Bond 5 | H13: Cost
A14: Number Purchased | B14: 10 | C14: 10 | D14: 10 | E14: 10 | F14: 10 | H14: =SUMPRODUCT(B14:F14,B11:F11) -> 61497.33675
A16: Cash Flow | B16: Bond 1 | C16: Bond 2 | D16: Bond 3 | E16: Bond 4 | F16: Bond 5 | H16: Total | J16: Liability
A17: Year 1 | B17: =B9*B14 -> 1000 | C17: =C9*C14 -> 1250 | D17: =D9*D14 -> 1500 | E17: =E9*E14 -> 2000 | F17: =F9*F14 -> 750 | H17: =SUM(B17:F17) -> 6500 | J17: 32000
A18: Year 2 | B18: =B9*B14 -> 1000 | C18: =C9*C14 -> 1250 | D18: =D9*D14 -> 1500 | E18: =E9*E14 -> 2000 | F18: =F9*F14 -> 750 | H18: 6500 | J18: 25000
A19: Year 3 | B19: =B9*B14 -> 1000 | C19: =C9*C14 -> 1250 | D19: =D9*D14 -> 1500 | E19: =E9*E14 -> 2000 | F19: =F9*F14 -> 750 | H19: 6500 | J19: 22000
A20: Year 4 | C20: =C9*C14 -> 1250 | D20: =D9*D14 -> 1500 | E20: =E9*E14 -> 2000 | F20: =F9*F14 -> 750 | H20: 5500 | J20: 28000
A21: Year 5 | C21: =C9*C14 -> 1250 | D21: =D9*D14 -> 1500 | F21: =F9*F14 -> 750 | H21: 3500 | J21: 25000
A22: Year 6 | D22: =D9*D14 -> 1500 | F22: =F9*F14 -> 750 | H22: 2250 | J22: 20000
A25: Problem
A26: In models BOND1 and BOND2 we saw a way for an investor to protect against interest rate fluctuations. Here, we'll look
A27: at another method. An investor wants to put together a portfolio consisting of up to 6 different bonds. He has certain cash-
A28: flow requirements in the future that the coupons of the bonds should cover. (For example, a pension fund must meet
A29: requirements for future pension payments.) These payments are independent of interest rate changes. How should the
A30: investor choose his portfolio to minimize the cost of the bonds, while making sure that the payments cover his future cash-
A31: flow requirements?
A33: Solution
A34: 1) The variables are the number of each bond to include in the portfolio. In worksheet BOND3 these are given the name
A35: Purchased_bonds.
A36: 2) The constraints are very simple. First we have the logical constraints:
B37: Purchased_bonds >= 0 via the Assume Non-Negative option
B38: Purchased_bonds = integer (We can not buy fractions of a bond)
A39: Then there is the constraint to make sure that the cash-flow requirements are met:
B40: Cash_flow >= Liabilities
A41: 3) The objective is to minimize the portfolio cost. This is given the name Total_cost.
A43: Remarks
A44: In this model we assume that money coming in from maturing bonds can not be used to cover the cash-flow requirements.
A45: Also, we do not account for excess money in one period that may be transferred to the next period. In model BOND4 we
A46: will account for this.

Sheet Bond4
A1: Bond Model - Exact Matching with Cash Carryforward
A2: What is the minimum cost portfolio, consisting of up to 6 bonds, that provides enough
A3: cash flow to cover liabilities in each period?
A4: Interest Rate | B4: 0.07
A6: Characteristics of bonds
B7: Bond 1 | C7: Bond 2 | D7: Bond 3 | E7: Bond 4 | F7: Bond 5
A8: Face Value | B8: 1000 | C8: 1000 | D8: 1000 | E8: 1000 | F8: 1000
A9: Coupon Payment | B9: 100 | C9: 125 | D9: 150 | E9: 175 | F9: 75
A10: Years to Maturity | B10: 3 | C10: 5 | D10: 6 | E10: 4 | F10: 6
A11: Price | B11: =PRICE(DATE(93,1,1),DATE(93+B10,1,1),B9/B8,0.07,100,1,0)*B8/100 -> 1078.729481 | C11: =PRICE(DATE(93,1,1),DATE(93+C10,1,1),C9/C8,0.07,100,1,0)*C8/100 -> 1225.510859 | D11: =PRICE(DATE(93,1,1),DATE(93+D10,1,1),D9/D8,0.07,100,1,0)*D8/100 -> 1381.323173 | E11: =PRICE(DATE(93,1,1),DATE(93+E10,1,1),E9/E8,0.07,100,1,0)*E8/100 -> 1355.657182 | F11: =PRICE(DATE(93,1,1),DATE(93+F10,1,1),F9/F8,0.07,100,1,0)*F8/100 -> 1023.832698
B13: Bond 1 | C13: Bond 2 | D13: Bond 3 | E13: Bond 4 | F13: Bond 5 | H13: Cost
A14: Number Purchased | B14: 50 | C14: 50 | D14: 50 | E14: 50 | F14: 50 | H14: =SUMPRODUCT(B14:F14,B11:F11) -> 303252.6697
A16: Cash Flow | B16: Bond 1 | C16: Bond 2 | D16: Bond 3 | E16: Bond 4 | F16: Bond 5 | H16: Total w/Int | J16: Liability
A17: Year 1 | B17: =B9*B14 -> 5000 | C17: =C9*C14 -> 6250 | D17: =D9*D14 -> 7500 | E17: =E9*E14 -> 8750 | F17: =F9*F14 -> 3750 | H17: =SUM(B17:F17) -> 31250 | J17: 32000
A18: Year 2 | B18: =B9*B14 -> 5000 | C18: =C9*C14 -> 6250 | D18: =D9*D14 -> 7500 | E18: =E9*E14 -> 8750 | F18: =F9*F14 -> 3750 | H18: =SUM(B18:F18)+(H17-J17)*(1+$B$4) -> 30447.5 | J18: 25000
A19: Year 3 | B19: =B9*B14 -> 5000 | C19: =C9*C14 -> 6250 | D19: =D9*D14 -> 7500 | E19: =E9*E14 -> 8750 | F19: =F9*F14 -> 3750 | H19: =SUM(B19:F19)+(H18-J18)*(1+$B$4) -> 37078.825 | J19: 22000
A20: Year 4 | C20: =C9*C14 -> 6250 | D20: =D9*D14 -> 7500 | E20: =E9*E14 -> 8750 | F20: =F9*F14 -> 3750 | H20: =SUM(B20:F20)+(H19-J19)*(1+$B$4) -> 42384.34275 | J20: 28000
A21: Year 5 | C21: =C9*C14 -> 6250 | D21: =D9*D14 -> 7500 | F21: =F9*F14 -> 3750 | H21: =SUM(B21:F21)+(H20-J20)*(1+$B$4) -> 32891.24674 | J21: 25000
A22: Year 6 | D22: =D9*D14 -> 7500 | F22: =F9*F14 -> 3750 | H22: =SUM(B22:F22)+(H21-J21)*(1+$B$4) -> 19693.63401 | J22: 20000
A25: Problem
A26: An investor wants to put together a portfolio consisting of up to 6 different bonds. He has certain cash-flow requirements in the future
A27: that the coupons of the bonds should cover. (For example, a pension fund must meet requirements for future pension payments.)
A28: These payments are independent of interest rate changes. Excess payments in a period can be reinvested, to be available in the
A29: next period, at a certain interest rate. How should the investor choose his portfolio to minimize the cost of the bonds, while making
A30: sure that the payments cover his future cash-flow requirements?
A32: Solution
A33: 1) The variables are the number of each bond to include in the portfolio. In worksheet BOND3 these are given the name
A34: Purchased_bonds.
A35: 2) The constraints are very simple. First we have the logical constraints:
B36: Purchased_bonds >= 0 via the Assume Non-Negative option
B37: Purchased_bonds = integer (We can not buy fractions of a bond)
A38: Then there is the constraint to make sure that the cash-flow requirements are met:
B39: Cash_flow >= Liabilities
A40: 3) The objective is to minimize the portfolio cost. This is given the name Total_cost.
A42: Remarks
A43: The solution is similar to the one in BOND3. The difference is that the cash-flow takes into account the reinvestment of excess
A44: funds in one period for the next period. Remember that the original idea behind exact matching was to minimize the influence
A45: of interest rate changes. In this model, however, we are again more dependent on the interest rate, since a shift in the future
A46: rate would affect the solution to the model. Thus, the market value of the portfolio may fluctuate to a greater extent than if we
A47: ignored reinvestment opportunities.
